lending/lending_fUSD_20250121
["ID","MTS","AMOUNT","RATE_DAILY","PERIOD"]
[349809143,1737439843569,-526.55,0.00021273,2]
[349809144,1737439843579,-500.0,0.00021273,2]
[349809145,1737439843588,-887.08,0.00021273,2]
[349809146,1737439843597,-835.6,0.00021273,2]
[349809147,1737439843606,-500.0,0.00021273,2]
[349809148,1737439843615,-500.0,0.00021273,2]
[349809149,1737439843624,-996.82,0.00021273,2]
[349809150,1737439843634,-500.0,0.00021273,2]
[349809151,1737439843642,-500.0,0.00021273,2]
[349809152,1737439843652,-540.9,0.00021273,2]
[349809154,1737439843664,-500.0,0.00021273,2]
[349809156,1737439843673,-541.08,0.00021273,2]
[349809158,1737439843682,-500.0,0.00021273,2]
[349809159,1737439843692,-799.31,0.00021273,2]
[349809160,1737439843701,-500.0,0.00021274,2]
[349809161,1737439843710,-181.05,0.00021274,2]
[349809162,1737439843720,-500.0,0.00021274,2]
[349809163,1737439843729,-500.0,0.00021274,2]
[349809164,1737439843738,-502.93,0.00021274,2]
[349809165,1737439843748,-500.0,0.00021274,2]
[349809166,1737439843757,-500.0,0.00021274,2]
[349809167,1737439843766,-500.0,0.00021274,2]
[349809168,1737439843775,-500.0,0.00021274,2]
[349809169,1737439843784,-202.21048092,0.00021312,2]
[349809171,1737439843793,-4345.72351754,0.00021349,2]
[349809172,1737439843803,-202.21048092,0.00021371,2]
[349809173,1737439843816,-301.23,0.00021392,2]
[349809174,1737439843825,-1004.26,0.00021392,2]
[349809175,1737439843835,-152.06,0.00021392,2]
[349809176,1737439843843,-438.48,0.00021396,2]
[349809177,1737439843855,-438.48,0.00021396,2]
[349809178,1737439843866,-238.49,0.00021396,2]
[349809179,1737439843876,-202.21048092,0.00021429,2]
[349809180,1737439843888,-4345.72351754,0.00021441,2]
[349809181,1737439843899,-300.07,0.00021446,2]
[349809182,1737439843910,-500.0,0.00021446,2]
[349809183,1737439843920,-500.0,0.00021446,2]
[349809184,1737439843930,-500.0,0.00021446,2]
[349809185,1737439843940,-842.26,0.00021446,2]
[349809186,1737439843951,-500.0,0.00021446,2]
[349809187,1737439843961,-538.42,0.00021446,2]
[349809188,1737439843971,-500.0,0.00021446,2]
[349809189,1737439843981,-500.0,0.00021446,2]
[349809190,1737439843991,-500.0,0.00021446,2]
[349809191,1737439844000,-500.0,0.00021447,2]
[349809192,1737439844010,-500.0,0.00021447,2]
[349809193,1737439844020,-500.0,0.00021447,2]
[349809194,1737439844030,-500.0,0.00021447,2]
[349809195,1737439844039,-500.0,0.00021447,2]
[349809196,1737439844049,-500.0,0.00021447,2]
[349809197,1737439844059,-500.0,0.00021447,2]
[349809198,1737439844068,-500.0,0.00021447,2]
[349809199,1737439844078,-357.34,0.00021447,2]
[349809200,1737439844088,-500.0,0.00021447,2]
[349809201,1737439844097,-500.0,0.00021447,2]
[349809202,1737439844107,-500.0,0.00021447,2]
[349809203,1737439844116,-500.0,0.00021447,2]
[349809204,1737439844126,-404.7,0.00021447,2]
[349809205,1737439844136,-500.0,0.00021447,2]
[349809206,1737439844145,-500.0,0.00021447,2]
[349809207,1737439844155,-500.0,0.00021447,2]
[349809208,1737439844169,-420.18,0.00021447,2]
[349809209,1737439844179,-500.0,0.00021447,2]
[349809210,1737439844188,-500.0,0.00021447,2]
[349809211,1737439844199,-174.17,0.00021447,2]
[349809212,1737439844208,-500.0,0.00021447,2]
[349809213,1737439844218,-486.2,0.00021447,2]
[349809214,1737439844228,-500.0,0.00021447,2]
[349809215,1737439844239,-500.0,0.00021447,2]
[349809216,1737439844248,-543.44,0.00021447,2]
[349809217,1737439844258,-500.0,0.00021447,2]
[349809218,1737439844267,-391.15,0.00021447,2]
[349809219,1737439844278,-500.0,0.00021447,2]
[349809220,1737439844288,-500.0,0.00021447,2]
[349809221,1737439844298,-500.0,0.00021447,2]
[349809222,1737439844307,-500.0,0.00021447,2]
[349809223,1737439844317,-368.61,0.00021447,2]
[349809224,1737439844326,-500.0,0.00021447,2]
[349809225,1737439844336,-500.0,0.00021447,2]
[349809226,1737439844345,-324.59,0.00021447,2]
[349809227,1737439844355,-500.0,0.00021447,2]
[349809228,1737439844364,-418.87,0.00021447,2]
[349809229,1737439844374,-500.0,0.00021447,2]
[349809230,1737439844383,-595.68,0.00021447,2]
[349809231,1737439844392,-500.0,0.00021447,2]
[349809232,1737439844401,-500.0,0.00021447,2]
[349809233,1737439844414,-589.01,0.00021447,2]
[349809234,1737439844424,-623.51,0.00021447,2]
[349809235,1737439844434,-500.0,0.00021447,2]
[349809236,1737439844443,-202.58,0.00021447,2]
[349809237,1737439844452,-465.90037572,0.00021447,2]
[349809238,1737439844462,-500.0,0.00021447,2]
[349809239,1737439844471,-500.0,0.00021447,2]
[349809240,1737439844480,-500.0,0.00021447,2]
[349809241,1737439844490,-500.0,0.00021447,2]
[349809242,1737439844499,-500.0,0.00021447,2]
[349809243,1737439844508,-500.0,0.00021447,2]
[349809244,1737439844518,-181.98,0.00021447,2]
[349809245,1737439844527,-456.85,0.00021447,2]
[349809246,1737439844536,-426.31,0.00021447,2]
[349809247,1737439844545,-500.0,0.00021447,2]
[349809248,1737439844555,-598.54,0.00021447,2]
[349809249,1737439844564,-500.0,0.00021447,2]
[349809250,1737439844573,-500.0,0.00021447,2]
[349809251,1737439844583,-500.0,0.00021447,2]
[349809252,1737439844592,-498.73,0.00021447,2]
[349809253,1737439844602,-500.0,0.00021447,2]
[349809254,1737439844611,-221.37,0.00021447,2]
[349809255,1737439844621,-303.78,0.00021447,2]
[349809256,1737439844630,-500.0,0.00021447,2]
[349809257,1737439844639,-1099.7,0.00021447,2]
[349809258,1737439844649,-260.12,0.00021447,2]
[349809259,1737439844662,-500.0,0.00021447,2]
[349809260,1737439844671,-500.0,0.00021447,2]
[349809261,1737439844682,-500.0,0.00021447,2]
[349809262,1737439844691,-649.94,0.00021447,2]
[349809263,1737439844700,-500.0,0.00021447,2]
[349809264,1737439844709,-500.0,0.00021447,2]
[349809265,1737439844719,-500.0,0.00021447,2]
[349809266,1737439844728,-1182.45,0.00021447,2]
[349809267,1737439844737,-500.0,0.00021447,2]
[349809268,1737439844747,-276.12,0.00021447,2]
[349809269,1737439844756,-213.08,0.00021447,2]
[349809270,1737439844765,-298.28,0.00021447,2]
[349809271,1737439844774,-638.23,0.00021447,2]
[349809272,1737439844784,-500.0,0.00021447,2]
[349809273,1737439844794,-195.05,0.00021447,2]
[349809274,1737439844804,-373.64,0.00021447,2]
[349809275,1737439844814,-757.9,0.00021447,2]
[349809276,1737439844827,-589.47,0.00021447,2]
[349809277,1737439844836,-580.56,0.00021447,2]
[349809278,1737439844846,-581.27,0.00021447,2]
[349809279,1737439844857,-500.0,0.00021447,2]
[349809280,1737439844867,-500.0,0.00021447,2]
[349809281,1737439844876,-500.0,0.00021447,2]
[349809282,1737439844885,-236.71,0.00021447,2]
[349809283,1737439844896,-500.0,0.00021447,2]
[349809284,1737439844906,-392.76,0.00021447,2]
[349809285,1737439844919,-217.32,0.00021447,2]
[349809286,1737439844928,-384.91,0.00021447,2]
[349809287,1737439844938,-179.77,0.00021447,2]
[349809288,1737439844947,-500.0,0.00021447,2]
[349809289,1737439844956,-169.59,0.00021447,2]
[349809290,1737439844966,-509.42,0.00021447,2]
[349809291,1737439844975,-542.99,0.00021447,2]
[349809292,1737439844985,-536.42,0.00021447,2]
[349809293,1737439844994,-266.22,0.00021447,2]
[349809294,1737439845003,-387.21,0.00021468,2]
[349809295,1737439845012,-500.0,0.00021469,2]
[349809296,1737439845022,-500.0,0.00021469,2]
[349809297,1737439845030,-500.0,0.00021469,2]
[349809298,1737439845040,-511.45,0.00021469,2]
[349809299,1737439845048,-500.0,0.00021469,2]
[349809300,1737439845058,-500.0,0.00021469,2]
[349809301,1737439845067,-500.0,0.00021469,2]
[349809302,1737439845076,-210.98,0.00021469,2]
[349809303,1737439845086,-500.0,0.00021469,2]
[349809304,1737439845095,-500.0,0.00021469,2]
[349809305,1737439845106,-500.0,0.00021469,2]
[349809306,1737439845115,-500.0,0.00021469,2]
[349809307,1737439845126,-500.0,0.00021469,2]
[349809308,1737439845136,-451.51,0.00021469,2]
[349809309,1737439845146,-740.66,0.00021469,2]
[349809310,1737439845195,-512.43,0.00021469,2]
[349809311,1737439845205,-554.83,0.00021469,2]
[349809312,1737439845215,-181.24,0.00021469,2]
[349809313,1737439845224,-501.34,0.00021469,2]
[349809314,1737439845233,-500.0,0.00021469,2]
[349809315,1737439845243,-407.24,0.00021469,2]
[349809316,1737439845252,-500.0,0.00021469,2]
[349809317,1737439845262,-500.0,0.00021469,2]
[349809318,1737439845271,-500.0,0.00021469,2]
[349809319,1737439845280,-511.11,0.00021469,2]
[349809320,1737439845289,-500.0,0.00021469,2]
[349809321,1737439845299,-500.0,0.00021469,2]
[349809322,1737439845308,-616.05,0.00021469,2]
[349809323,1737439845317,-202.21048092,0.00021488,2]
[349809324,1737439845326,-4345.72351754,0.00021532,2]
[349809325,1737439845335,-487.897678,0.00021547,2]
[349809326,1737439845345,-588.31,0.00021547,2]
[349809327,1737439845354,-500.0,0.00021547,2]
[349809328,1737439845363,-500.0,0.00021547,2]
[349809329,1737439845372,-255.044765,0.00021547,2]
[349809330,1737439845382,-500.0,0.00021547,2]
[349809331,1737439845392,-526.55,0.00021547,2]
[349809332,1737439845401,-500.0,0.00021547,2]
[349809333,1737439845411,-887.08,0.00021547,2]
[349809334,1737439845420,-835.6,0.00021547,2]
[349809335,1737439845430,-500.0,0.00021547,2]
[349809336,1737439845439,-996.82,0.00021547,2]
[349809337,1737439845448,-500.0,0.00021547,2]
[349809338,1737439845458,-500.0,0.00021547,2]
[349809339,1737439845467,-540.9,0.00021547,2]
[349809340,1737439845478,-500.0,0.00021547,2]
[349809341,1737439845488,-541.08,0.00021547,2]
[349809342,1737439845497,-500.0,0.00021547,2]
[349809343,1737439845506,-799.31,0.00021547,2]
[349809344,1737439845515,-202.21048092,0.00021547,2]
[349809345,1737439845524,-500.0,0.00021548,2]
[349809346,1737439845533,-500.0,0.00021548,2]
[349809347,1737439845543,-170.41,0.00021548,2]
[349809348,1737439845552,-293.57758313,0.00021548,2]
[349809349,1737439845561,-192.12,0.00021548,2]
[349809350,1737439845573,-422.79,0.00021548,2]
[349809351,1737439845582,-500.0,0.00021548,2]
[349809352,1737439845591,-301.6342127,0.0002156,2]
[349809353,1737439845600,-151.295,0.00021586,2]
[349809354,1737439845608,-3902.0,0.00021586,2]
[349809355,1737439845617,-1024.777,0.00021586,2]
[349809356,1737439845626,-202.21048092,0.00021606,2]
[349809357,1737439845636,-164.69,0.00021623,2]
[349809358,1737439845645,-4345.72351754,0.00021624,2]
[349809359,1737439845654,-202.21048092,0.00021665,3]
[349809360,1737439845666,-151.09,0.00021682,2]
[349809361,1737439845675,-150.0,0.00021682,2]
[349809362,1737439845684,-150.0,0.00021682,2]
[349809363,1737439845694,-150.0,0.00021682,2]
[349809364,1737439845703,-1000.0,0.000217,2]
[349809365,1737439845713,-4345.72351754,0.00021716,2]
[349809366,1737439845723,-500.0,0.0002172,2]
[349809367,1737439845732,-500.0,0.0002172,2]
[349809368,1737439845741,-573.0,0.0002172,2]
[349809369,1737439845751,-842.26,0.0002172,2]
[349809370,1737439845761,-500.0,0.0002172,2]
[349809371,1737439845771,-500.0,0.0002172,2]
[349809372,1737439845780,-500.0,0.0002172,2]
[349809373,1737439845790,-500.0,0.0002172,2]
[349809374,1737439845799,-500.55376284,0.00021721,2]
[349809375,1737439845812,-538.81245564,0.00021721,2]
[349809376,1737439845821,-500.0,0.00021721,2]
[349809377,1737439845830,-500.0,0.00021721,2]
[349809378,1737439845840,-500.0,0.00021721,2]
[349809379,1737439845849,-500.0,0.00021721,2]
[349809380,1737439845862,-500.0,0.00021721,2]
[349809381,1737439845872,-500.0,0.00021721,2]
[349809382,1737439845881,-500.0,0.00021721,2]
[349809383,1737439845891,-500.0,0.00021721,2]
[349809384,1737439845901,-198.63,0.00021721,2]
[349809385,1737439845910,-295.79,0.00021721,2]
[349809386,1737439845920,-500.0,0.00021721,2]
[349809387,1737439845929,-227.55,0.00021721,2]
[349809388,1737439845938,-500.0,0.00021721,2]
[349809389,1737439845947,-542.54,0.00021721,2]
[349809390,1737439845957,-570.7,0.00021721,2]
[349809391,1737439845966,-179.9,0.00021721,2]
[349809392,1737439845975,-313.53,0.00021721,2]
[349809393,1737439845984,-199.92,0.00021721,2]
[349809394,1737439845994,-595.68,0.00021721,2]
[349809395,1737439846002,-500.0,0.00021721,2]
[349809396,1737439846011,-171.48,0.00021721,2]
[349809397,1737439846020,-500.0,0.00021721,2]
[349809398,1737439846029,-177.2,0.00021721,2]
[349809399,1737439846038,-500.0,0.00021721,2]
[349809400,1737439846047,-500.0,0.00021721,2]
[349809401,1737439846056,-500.0,0.00021721,2]
[349809402,1737439846065,-500.0,0.00021721,2]
[349809403,1737439846074,-500.0,0.00021721,2]
[349809404,1737439846082,-203.2,0.00021721,2]
[349809405,1737439846091,-598.54,0.00021721,2]
[349809407,1737439846100,-500.0,0.00021721,2]
[349809409,1737439846109,-162.51,0.00021721,2]
[349809411,1737439846118,-500.0,0.00021721,2]
[349809412,1737439846127,-500.0,0.00021721,2]
[349809415,1737439846136,-500.0,0.00021721,2]
[349809418,1737439846145,-1099.7,0.00021721,2]
[349809420,1737439846154,-224.29,0.00021721,2]
[349809422,1737439846164,-500.0,0.00021721,2]
[349809424,1737439846174,-500.0,0.00021721,2]
[349809425,1737439846183,-649.94,0.00021721,2]
[349809427,1737439846193,-457.34,0.00021721,2]
[349809429,1737439846203,-630.39,0.00021721,2]
[349809430,1737439846212,-500.0,0.00021721,2]
[349809431,1737439846221,-1182.45,0.00021721,2]
[349809432,1737439846231,-500.0,0.00021721,2]
[349809433,1737439846240,-500.0,0.00021721,2]
[349809434,1737439846251,-589.47,0.00021721,2]
[349809435,1737439846260,-757.9,0.00021721,2]
[349809436,1737439846270,-500.0,0.00021721,2]
[349809437,1737439846279,-328.3,0.00021721,2]
[349809438,1737439846289,-500.0,0.00021721,2]
[349809439,1737439846299,-500.0,0.00021721,2]
[349809440,1737439846309,-500.0,0.00021721,2]
[349809441,1737439846319,-509.42,0.00021721,2]
[349809442,1737439846328,-202.21048092,0.00021724,3]
[349809443,1737439846338,-500.0,0.00021743,2]
[349809444,1737439846347,-445.58,0.00021743,2]
[349809445,1737439846356,-198.54,0.00021743,2]
[349809446,1737439846366,-500.0,0.00021743,2]
[349809447,1737439846376,-500.0,0.00021743,2]
[349809448,1737439846385,-500.0,0.00021743,2]
[349809449,1737439846395,-500.0,0.00021743,2]
[349809450,1737439846404,-482.39,0.00021743,2]
[349809451,1737439846416,-500.0,0.00021743,2]
[349809452,1737439846426,-500.0,0.00021743,2]
[349809453,1737439846435,-500.0,0.00021743,2]
[349809454,1737439846445,-740.66,0.00021743,2]
[349809455,1737439846454,-512.43,0.00021743,2]
[349809456,1737439846463,-501.34,0.00021743,2]
[349809457,1737439846473,-500.0,0.00021743,2]
[349809458,1737439846482,-500.0,0.00021743,2]
[349809459,1737439846492,-252.24,0.00021743,2]
[349809460,1737439846502,-500.0,0.00021743,2]
[349809461,1737439846511,-511.11,0.00021743,2]
[349809462,1737439846521,-500.0,0.00021743,2]
[349809463,1737439846530,-500.0,0.00021743,2]
[349809464,1737439846540,-616.05,0.00021743,2]
[349809465,1737439846550,-1831.55581582,0.00021745,2]
[349809466,1737439846559,-83606.66409491,0.00021751,2]
[349809467,1737439846569,-83606.66409491,0.00021751,2]
[349809468,1737439846579,-2858.08448654,0.00021753,2]
[349809469,1737439846588,-83606.66409491,0.00021759,2]
[349809470,1737439846598,-4464.39041804,0.00021762,2]
[349809471,1737439846607,-430.3178249,0.00021763,2]
[349809472,1737439846617,-13057.21162825,0.00021764,2]
[349809473,1737439846626,-3486.86762,0.00021764,2]
[349809474,1737439846636,-10172.26871866,0.00021768,2]
[349809475,1737439846645,-740.72177354,0.0002177,2]
[349809476,1737439846654,-4464.39041804,0.00021776,2]
[349809477,1737439846666,-9038.57225045,0.00021777,2]
[349809478,1737439846675,-202.21048092,0.00021782,3]
[349809479,1737439846685,-13057.21162825,0.00021794,2]
[349809480,1737439846694,-4464.39041804,0.00021795,2]
[349809481,1737439846703,-13057.21162825,0.00021798,2]
[349809482,1737439846713,-312.67354889,0.00021798,2]
[349809483,1737439846722,-10572.17989079,0.000218,2]
[349809484,1737439846731,-1000.0,0.000218,2]
[349809485,1737439846740,-4345.72351754,0.00021808,2]
[349809486,1737439846749,-4464.39041804,0.00021808,2]
[349809487,1737439846759,-1831.55581582,0.00021809,2]
[349809488,1737439846768,-2858.08448654,0.00021812,2]
[349809489,1737439846777,-3486.86762,0.00021812,2]
[349809490,1737439846786,-83606.66409491,0.00021815,2]
[349809491,1737439846795,-4464.39041804,0.00021818,2]
[349809492,1737439846805,-312.67354889,0.00021818,2]
[349809493,1737439846819,-487.897678,0.00021821,2]
[349809494,1737439846828,-500.0,0.00021821,2]
[349809495,1737439846837,-500.0,0.00021821,2]
[349809496,1737439846847,-255.044765,0.00021821,2]
[349809497,1737439846856,-526.55,0.00021821,2]
[349809498,1737439846866,-500.0,0.00021821,2]
[349809499,1737439846876,-887.08,0.00021821,2]
[349809500,1737439846886,-835.6,0.00021821,2]
[349809501,1737439846896,-500.0,0.00021821,2]
[349809502,1737439846905,-996.82,0.00021821,2]
[349809503,1737439846915,-500.0,0.00021821,2]
[349809504,1737439846925,-500.0,0.00021821,2]
[349809505,1737439846935,-540.9,0.00021821,2]
[349809506,1737439846944,-500.0,0.00021821,2]
[349809507,1737439846954,-541.08,0.00021821,2]
[349809508,1737439846963,-500.0,0.00021821,2]
[349809509,1737439846973,-799.31,0.00021821,2]
[349809510,1737439846982,-500.0,0.00021822,2]
[349809511,1737439846992,-500.0,0.00021822,2]
[349809512,1737439847001,-500.0,0.00021822,2]
[349809513,1737439847011,-3486.86762,0.00021823,2]
[349809514,1737439847020,-1831.55581582,0.00021824,2]
[349809515,1737439847030,-500.0,0.00021824,2]
[349809516,1737439847039,-83606.66409491,0.00021825,2]
[349809517,1737439847049,-2858.08448654,0.00021826,2]
[349809518,1737439847058,-2858.08448654,0.00021827,2]
[349809519,1737439847067,-740.72177354,0.00021832,2]
[349809520,1737439847076,-740.72177354,0.00021836,2]
[349809521,1737439847086,-312.67354889,0.00021837,2]
[349809522,1737439847095,-10172.26871866,0.0002184,2]
[349809523,1737439847105,-202.21048092,0.00021841,3]
[349809524,1737439847114,-3486.86762,0.00021844,2]
[349809525,1737439847124,-10172.26871866,0.00021848,2]
[349809526,1737439847134,-1831.55581582,0.00021848,2]
[349809527,1737439847144,-312.67354889,0.00021848,2]
[349809528,1737439847153,-13057.21162825,0.0002185,2]
[349809529,1737439847163,-1831.55581582,0.00021861,2]
[349809530,1737439847173,-312.67354889,0.00021864,2]
[349809531,1737439847183,-10172.26871866,0.00021872,2]
[349809532,1737439847193,-169.56200887,0.00021873,2]
[349809533,1737439847202,-3486.86762,0.00021874,2]
[349809534,1737439847212,-13057.21162825,0.00021876,2]
[349809535,1737439847222,-10172.26871866,0.00021877,2]
[349809536,1737439847231,-2858.08448654,0.00021884,2]
[349809537,1737439847241,-500.0,0.0002189,2]
[349809538,1737439847251,-740.72177354,0.00021896,2]
[349809539,1737439847261,-740.72177354,0.00021897,2]
[349809540,1737439847271,-9038.57225045,0.00021899,2]
[349809541,1737439847281,-481.86964058,0.00021899,2]
[349809542,1737439847290,-481.86964058,0.000219,2]
[349809543,1737439847299,-1155.64010378,0.000219,2]
[349809544,1737439847309,-1404.24349807,0.000219,2]
[349809545,1737439847319,-2008.27,0.000219,2]
[349809546,1737439847328,-481.86964058,0.000219,2]
[349809547,1737439847338,-1000.0,0.000219,2]
[349809548,1737439847347,-1571.85,0.000219,31]
[349809549,1737439847357,-1571.85,0.000219,31]
[349809550,1737439847366,-1571.85,0.000219,31]
[349809551,1737439847376,-1571.85,0.000219,31]
[349809552,1737439847385,-1571.85,0.000219,31]
[349809553,1737439847395,-1571.85,0.000219,31]
[349809554,1737439847404,-1571.85,0.000219,31]
[349809555,1737439847415,-1571.85,0.000219,31]
[349809556,1737439847425,-1571.85,0.000219,31]
[349809557,1737439847435,-1571.85,0.000219,31]
[349809558,1737439847444,-1571.85,0.000219,31]
[349809559,1737439847454,-1571.85,0.000219,31]
[349809560,1737439847464,-1571.85,0.000219,31]
[349809561,1737439847474,-1571.85,0.000219,31]
[349809562,1737439847484,-1571.85,0.000219,31]
[349809563,1737439847493,-1571.85,0.000219,31]
[349809564,1737439847503,-191.54141768,0.000219,2]
[349809565,1737439847513,-4345.72351754,0.000219,2]
[349809566,1737439847522,-1552.54812994,0.000219,2]
[349809567,1737439847532,-202.21048092,0.000219,3]
[349809568,1737439847542,-2230.0,0.000219,2]
[349809569,1737439847552,-500.0,0.00021917,2]
[349809570,1737439847561,-500.0,0.00021917,2]
[349809571,1737439847571,-500.0,0.00021917,2]
[349809572,1737439847581,-500.0,0.00021917,2]
[349809573,1737439847590,-500.0,0.00021917,2]
[349809574,1737439847600,-500.0,0.00021917,2]
[349809575,1737439847610,-4000.0,0.00021918,2]
[349809576,1737439847619,-510.28092612,0.00021947,2]
[349809577,1737439847629,-108389.0,0.00021973,2]
[349809578,1737439847639,-500.0,0.00021973,2]
[349809579,1737439847649,-150.0,0.00021973,4]
[349809580,1737439847659,-150.0,0.00021973,4]
[349809581,1737439847671,-150.0,0.00021973,4]
[349809582,1737439847681,-191.38811478,0.0002199,2]
[349809583,1737439847691,-191.38811478,0.0002199,2]
[349809584,1737439847701,-191.38811478,0.0002199,2]
[349809585,1737439847710,-2005.97,0.0002199,2]
[349809586,1737439847720,-2359.5175584,0.00021993,2]
[349809587,1737439847729,-5419.2363684,0.00021993,2]
[349809588,1737439847739,-2416.9496017,0.00021993,2]
[349809589,1737439847749,-11811.1783263,0.00021993,2]
[349809590,1737439847759,-500.0,0.00021994,2]
[349809591,1737439847772,-500.0,0.00021994,2]
[349809592,1737439847782,-842.26,0.00021994,2]
[349809593,1737439847791,-500.0,0.00021994,2]
[349809594,1737439847801,-500.0,0.00021994,2]
[349809595,1737439847811,-500.0,0.00021994,2]
[349809596,1737439847824,-279.33,0.00021994,2]
[349809597,1737439847834,-520.49399072,0.00021995,2]
[349809598,1737439847843,-500.0,0.00021995,2]
[349809599,1737439847854,-500.0,0.00021995,2]
[349809600,1737439847864,-500.0,0.00021995,2]
[349809601,1737439847875,-500.0,0.00021995,2]
[349809602,1737439847885,-500.0,0.00021995,2]
[349809603,1737439847895,-500.0,0.00021995,2]
[349809604,1737439847907,-500.0,0.00021995,2]
[349809605,1737439847918,-500.0,0.00021995,2]
[349809606,1737439847928,-500.0,0.00021995,2]
[349809607,1737439847937,-500.0,0.00021995,2]
[349809608,1737439847947,-595.68,0.00021995,2]
[349809609,1737439847957,-500.0,0.00021995,2]
[349809610,1737439847966,-500.0,0.00021995,2]
[349809611,1737439847976,-500.0,0.00021995,2]
[349809612,1737439847986,-511.16749757,0.00021995,2]
[349809613,1737439847996,-500.0,0.00021995,2]
[349809614,1737439848007,-500.0,0.00021995,2]
[349809615,1737439848016,-500.0,0.00021995,2]
[349809616,1737439848026,-500.0,0.00021995,2]
[349809617,1737439848035,-598.54,0.00021995,2]
[349809618,1737439848046,-500.0,0.00021995,2]
[349809619,1737439848056,-292.51,0.00021995,2]
[349809620,1737439848066,-610.69906005,0.00021995,2]
[349809621,1737439848076,-209.84,0.00021995,2]
[349809622,1737439848086,-1099.7,0.00021995,2]
[349809623,1737439848096,-500.0,0.00021995,2]
[349809624,1737439848106,-325.22,0.00021995,2]
[349809625,1737439848116,-649.94,0.00021995,2]
[349809626,1737439848126,-252.84,0.00021995,2]
[349809627,1737439848136,-1182.45,0.00021995,2]
[349809628,1737439848146,-500.0,0.00021995,2]
[349809629,1737439848156,-500.0,0.00021995,2]
[349809630,1737439848167,-589.47,0.00021995,2]
[349809631,1737439848178,-757.9,0.00021995,2]
[349809632,1737439848189,-500.0,0.00021995,2]
[349809633,1737439848199,-500.0,0.00021995,2]
[349809634,1737439848209,-500.0,0.00021995,2]
[349809635,1737439848220,-500.0,0.00021995,2]
[349809636,1737439848230,-509.42,0.00021995,2]
[349809637,1737439848240,-524.08,0.00021998,2]
[349809638,1737439848250,-1115.87,0.00021998,2]
[349809639,1737439848260,-500.0,0.00021999,2]
[349809640,1737439848270,-500.0,0.00021999,2]
[349809641,1737439848280,-500.0,0.00021999,2]
[349809642,1737439848289,-500.0,0.00021999,2]
[349809643,1737439848299,-469.07037734,0.00021999,10]
[349809644,1737439848309,-1000.0,0.00021999,2]
[349809645,1737439848319,-500.0,0.00021999,2]
[349809646,1737439848329,-500.0,0.00021999,2]
[349809647,1737439848339,-500.0,0.00021999,2]
[349809648,1737439848349,-666.0,0.00021999,2]
[349809649,1737439848359,-198.01371088,0.00021999,2]
[349809650,1737439848369,-672.44042542,0.00021999,2]
[349809651,1737439848379,-332.5799057,0.00021999,2]
[349809652,1737439848389,-666.0,0.00021999,2]
[349809653,1737439848400,-220.09225564,0.00021999,2]
[349809654,1737439848411,-112919.44828134,0.00022,2]
[349809655,1737439848421,-4515720.10534947,0.00022,2]
[349809656,1737439848629,-500.0,0.0002092,2]
[349809657,1737439848639,-48.35263034,0.00022,2]
[349809658,1737439848651,-378.2980898,0.00022,2]